Cogmind - Beta 13 @@@ ROGUE MODE // 2024.04.07 @ 20:03:10 Player: jemps Result: Self-destructed Performance ------------- Evolutions (1) 500 Regions Visited (2) 400 Robots Destroyed (16) 80 Value Destroyed (342) 342 Prototype IDs (0) 0 Alien Tech Used (0) 0 Bonus (0) 0 TOTAL SCORE: 1322 Bonus ------- None Cogmind --------- Core Integrity 289/400 Matter 259/300 Energy 100/100 System Corruption 0% Temperature Cool (0) Movement Rolling (110) Ox2 Location -9/Materials Parts ------- > --- POWER (1) -------- (None) > --- PROPULSION (4) --- Wheel Improved Hover Unit Improved Hover Unit > --- UTILITY (2) ------ Large Storage Unit Propulsion Shielding > --- WEAPON (2) ------- Light Assault Rifle > --- INVENTORY (15) --- Compact Wheel Flight Unit Flight Unit High-capacity Matter Pod (26) Sensor Array Improved Terrain Scanner Datajack Mining Laser Peak State ------------ > --- POWER ------------ Light Ion Engine > --- PROPULSION ------- Wheel Wheel Improved Hover Unit Improved Hover Unit > --- UTILITY ---------- Large Storage Unit Seismic Detector > --- WEAPON ----------- EM Pulse Gun Particle Gun > --- INVENTORY -------- Light Ion Engine Wheel Compact Wheel Flight Unit Flight Unit High-capacity Matter Pod Sensor Array Improved Terrain Scanner Propulsion Shielding Light Assault Rifle Grenade Launcher Datajack Mining Laser [Rating: 13] Favorites ----------- Power Light Ion Engine Engine Light Ion Engine Propulsion Wheel Treads Light Treads Leg Aluminum Leg Wheel Wheel Hover Unit Improved Hover Unit Flight Unit Flight Unit Utility Large Storage Unit Device Seismic Detector Storage Large Storage Unit Protection Propulsion Shielding Weapon Small Laser Energy Gun Small Laser Ballistic Gun Light Assault Rifle Launcher Grenade Launcher Special Weapon Mining Laser Special Melee Weapon Datajack Build | -11 -10 -9 ------- Run | Yrd Mat Mat Slots Evolved 2 | . . 2 Power . | . . . Propulsion 2 | . . 2 Utility . | . . . Weapon . | . . . Parts Attached 42 | 13 17 12 Power 3 | 1 1 1 Engine 3 | 1 1 1 Core . | . . . Reactor . | . . . Propulsion 17 | 6 6 5 Treads 2 | 2 . . Leg 1 | 1 . . Wheel 9 | 3 3 3 Hover 2 | . . 2 Flight 3 | . 3 . Utility 8 | 3 4 1 Device 4 | 2 2 . Storage 3 | 1 2 . Processor . | . . . Hackware . | . . . Protection 1 | . . 1 Artifact . | . . . Weapon 14 | 3 6 5 Energy Gun 7 | 2 4 1 Energy Cannon . | . . . Ballistic Gun 2 | 1 . 1 Ballistic Cannon . | . . . Launcher 2 | . 1 1 Special Weapon 2 | . 1 1 Impact Weapon . | . . . Slashing Weapon . | . . . Piercing Weapon . | . . . Special Melee Weapon 1 | . . 1 Unidentified Prototypes . | . . . Parts Lost 12 | . 4 8 Power 3 | . 1 2 Propulsion 3 | . 1 2 Utility 1 | . . 1 Weapon 5 | . 2 3 Highest Loss Streak 8 | . 4 8 To Critical Strikes 1 | . 1 . Average Slot Usage (%) 96 | . 97 94 Engine 12 | . 13 10 Wheel 25 | . 27 22 Hover 8 | . . 20 Device 11 | . 14 8 Storage 12 | . 14 11 Energy Gun 20 | . 25 14 Ballistic Gun 1 | . . 3 Naked Turns . | . . . Heaviest Build 29 | 11 29 29 Greatest Support 30 | 20 20 30 Greatest Overweight (x) 2 | . 2 2 Average Overweight (x) . | . . 1 Largest Inventory Capacity 15 | 8 15 15 Average Capacity 13 | 7 14 15 Most Carried 15 | 8 15 14 Average Carried 11 | 5 12 12 Final Capacity 15 | 8 15 15 Final Carried 13 | 8 13 8 Class Distribution -------------------- 100% | Mutant Dominant Class ---------------- Mutant | -10/Materials Mutant | -9/Materials Resources | -11 -10 -9 ----------- Run | Yrd Mat Mat Matter Collected 569 | 320 176 73 Remotely . | . . . Salvage Created 524 | 135 236 153 Parts 33 | 7 13 13 Haulers Intercepted . | . . . Recyclers Shooed . | . . . Parts Field Recycled . | . . . Retrieved Matter . | . . . Parts Self-Destructed . | . . . Prevented . | . . . Kills | -11 -10 -9 ------- Run | Yrd Mat Mat Combat Hostiles Destroyed 13 | . 6 7 Guns 10 | . 6 4 AOE 3 | . . 3 Classes Destroyed 5 | 2 2 1 Tunneler 2 | 2 . . Recycler 1 | 1 . . Swarmer 6 | . 2 4 Grunt 6 | . 4 2 Sentry 1 | . . 1 Best Kill Streak 6 | 2 6 4 Combat Bots Only 6 | . 6 4 Max Kills in Single Turn 3 | 1 1 3 Gunslinging . | . . . Exploded 3 | . . 3 Melee . | . . . Uniques/NPCs Destroyed . | . . . Combat | -11 -10 -9 -------- Run | Yrd Mat Mat Hostile Shots Fired 120 | . 45 75 Missed 31 | . 8 23 Damage Taken 958 | . 390 568 Core 191 | . 80 111 Absorbed by Shields . | . . . Redirected to Shielding 15 | . . 15 Core Remaining (%) 84 | 100 68 . Volleys Fired 58 | 12 29 17 Largest 2 | 2 2 2 Hottest 105 | 80 105 105 Shots Fired 88 | 24 40 24 Gun 85 | 24 38 23 Cannon . | . . . Launcher 1 | . . 1 Special 2 | . 2 . Kinetic 14 | . . 14 Thermal 59 | 24 29 6 Explosive 1 | . . 1 Electromagnetic 14 | . 11 3 Robot Hit Streak 8 | 6 8 7 Robot Miss Streak 5 | 2 5 1 Penetration Max . | . . . Secondary Targets 3 | . 2 1 Max Gunslinging Chain 1 | . 1 1 Shots Hit Robots 60 | 13 25 22 Core Hits 28 | 4 11 13 Critical Kills . | . . . Critical Parts Destroyed . | . . . Critical Strikes . | . . . Melee Attacks 4 | . . 4 Impact . | . . . Slashing . | . . . Piercing . | . . . Sneak Attacks 4 | . . 4 Combat Hostiles . | . . . Follow-up Attacks . | . . . Damage Inflicted 747 | 138 307 302 Guns 620 | 138 307 175 Cannons . | . . . Explosions 127 | . . 127 Melee . | . . . Ramming . | . . . Kinetic 87 | . . 87 Thermal 402 | 138 203 61 Explosive 127 | . . 127 Electromagnetic 131 | . 104 27 Impact . | . . . Slashing . | . . . Piercing . | . . . Highest Corruption . | . . . Average Corruption . | . . . Corruption Purged . | . . . Corruption Blocked . | . . . Overload Shots . | . . . Overflow Damage . | . . . Projectiles . | . . . Explosions . | . . . Melee . | . . . Knockbacks . | . . . Impact . | . . . Kinetic . | . . . Secondary . | . . . Self-Inflicted Damage . | . . . Shots . | . . . Rammed . | . . . Targets Rammed . | . . . Kicked . | . . . Crushed . | . . . Highest Temperature 179 | 108 179 102 Average Temperature 65 | 37 93 31 Received Heat Transfer 318 | . 126 192 Siege Activations . | . . . Robots Corrupted . | . . . Combat Hostiles . | . . . Parts Fried 1 | . 1 . Impact Corruptions . | . . . Robots Melted . | . . . Combat Hostiles . | . . . Parts Melted 2 | 2 . . Heat Transferred 910 | 300 462 148 Parts Sabotaged . | . . . Parts Stolen . | . . . Parts Stripped . | . . . Power Chain Reactions . | . . . Alert | -11 -10 -9 ------- Run | Yrd Mat Mat Peak Influence 141 | 15 141 136 Initial 9 | . 9 5 Average 35 | 6 41 45 Maximum Alert Level . | . . . Low Security (%) 100 | 100 100 100 Level 1 . | . . . Level 2 . | . . . Level 3 . | . . . Level 4 . | . . . Level 5 . | . . . High Security . | . . . Max Security . | . . . Squads Dispatched 2 | . . 2 Investigation 1 | . . 1 Extermination . | . . . Reinforcement 1 | . . 1 Assault . | . . . Garrison . | . . . Intercept . | . . . Searches Triggered . | . . . Construction Impeded . | . . . Haulers Reinforced . | . . . Active Scanning Responses . | . . . Cargo Convoy Interrupts . | . . . Stealth | -11 -10 -9 --------- Run | Yrd Mat Mat Distress Signals 2 | . 1 1 Communications Jammed . | . . . Distress Signals . | . . . Times Spotted 27 | . 13 14 Peak Tracking Total 10 | . 10 8 Tactical Retreats . | . . . Traps | -11 -10 -9 ------- Run | Yrd Mat Mat Traps Triggered 2 | . . 2 Indirectly . | . . . Trap Hack Attempts . | . . . Triggered . | . . . Disarmed . | . . . Reprogrammed . | . . . Reused . | . . . Traps Extracted . | . . . Installed . | . . . Triggered . | . . . Machines | -11 -10 -9 ---------- Run | Yrd Mat Mat Machines Disabled . | . . . Max in Single Turn . | . . . Machines Repaired . | . . . Machines Dismantled . | . . . Machines Sabotaged . | . . . Overloaded Fab Kills . | . . . Hacking | -11 -10 -9 --------- Run | Yrd Mat Mat Machines Accessed 4 | . 2 2 Terminals 4 | . 2 2 Fabricators . | . . . Repair Stations . | . . . Recycling Units . | . . . Scanalyzers . | . . . Garrison Access . | . . . Total Hacks 10 | . 5 5 Successful 4 | . 1 3 Failed 6 | . 4 2 Catastrophic 1 | . 1 . Database Lockouts . | . . . Manual 4 | . 3 1 Terminals 10 | . 5 5 Fabricators . | . . . Repair Stations . | . . . Recycling Units . | . . . Scanalyzers . | . . . Garrison Access . | . . . Terminal Hacks 4 | . 1 3 Terminal Index 1 | . . 1 Locate Traps 1 | . . 1 Zone Layout 2 | . 1 1 Fabricator Hacks . | . . . Repair Station Hacks . | . . . Recycling Unit Hacks . | . . . Scanalyzer . | . . . Garrison Access Hacks . | . . . Unauthorized Hacks . | . . . Terminals . | . . . Fabricators . | . . . Repair Stations . | . . . Recycling Units . | . . . Scanalyzers . | . . . Garrison Access . | . . . Data Cores Recovered . | . . . Used . | . . . Hacking Detections 4 | . 2 2 Full Trace Events . | . . . Feedback Events . | . . . Feedback Blocked . | . . . Robot Schematics Acquired . | . . . Robots Built . | . . . Authchips . | . . . Time . | . . . Total Robot Build Rating . | . . . Part Schematics Acquired . | . . . Parts Built . | . . . Authchips . | . . . Time . | . . . Total Part Build Rating . | . . . Parts Repaired . | . . . Time . | . . . Parts Recycled . | . . . Recycled Matter . | . . . Retrieved Matter . | . . . Retrieved Components . | . . . Parts Scanalyzed . | . . . Part Schematics Acquired . | . . . Parts Damaged . | . . . Bothacking | -11 -10 -9 ------------ Run | Yrd Mat Mat Used RIF Installer . | . . . Robots Hacked 2 | . . 2 Non-combat 2 | . . 2 Combat . | . . . Robot Hacks Applied 2 | . . 2 no_distress 1 | . . 1 check_alert 1 | . . 1 Relay Couplers Released . | . . . Fabnet Peak Effective % . | . . . Robots Rewired . | . . . Allies Hacked . | . . . Hacks Repelled . | . . . Allies | -11 -10 -9 -------- Run | Yrd Mat Mat Total Allies . | . . . Largest Group . | . . . Highest-Rated Group . | . . . Highest-Rated Ally . | . . . Total Orders . | . . . Ally Attacks . | . . . Total Damage . | . . . Kills . | . . . Allies Corrupted . | . . . Allies Melted . | . . . Intel | -11 -10 -9 ------- Run | Yrd Mat Mat Robot Analysis Total . | . . . Derelict Logs Recovered . | . . . Drone Launches . | . . . Drone Recoveries . | . . . Exploration | -11 -10 -9 ------------- Run | Yrd Mat Mat Turns Passed 849 | 190 407 252 Spaces Moved 546 | 128 293 125 Core 4 | 4 . . Treads 21 | 21 . . Legs . | . . . Wheels 414 | 103 293 18 Hover 107 | . . 107 Flight . | . . . Fastest Speed 50 | 50 80 80 Average Speed 105 | 92 93 146 Slowest Speed 186 | 160 110 186 Overloaded Moves . | . . . Propulsion Burnouts . | . . . Robots Hopped . | . . . Cave-ins Triggered . | . . . Exploration Rate (%) 23 | 7 41 22 Regions Visited 2 Branch Regions . Pre-discovered Areas . | . . . Known Exits Taken . | . . . Unknown Exits Taken 2 | 1 1 . Scrap Searched . | . . . Spaces Dug 2 | . 2 . Terrain Destroyed 7 | . 2 5 Melee . | . . . Projectile 2 | . 2 . AOE 5 | . . 5 Terrain Rammed . | . . . Walls Destroyed . | . . . Machines Disabled . | . . . Actions | -11 -10 -9 --------- Run | Yrd Mat Mat Total 716 | 172 377 167 Wait 34 | 1 26 7 Move 544 | 127 292 125 Hop . | . . . Pick Up 26 | 14 10 2 Fast Attach 7 | 6 1 . Attach 11 | 1 3 7 Detach . | . . . Swap 24 | 6 13 5 Drop 8 | 5 3 . Fire 58 | 12 29 17 Melee 4 | . . 4 Ram . | . . . Kick . | . . . Crush . | . . . Escape Stasis . | . . . Rewire . | . . . Trap . | . . . Miscellaneous . | . . . Route ------- -11/Scrapyard -10/Materials (discovered 2 exits: *Mat / [*Min]) -9/Materials (discovered 1 exit: [*Min]) History --------- Turn | Location | Event 31 | -11/Scrapyard | Discovered new exit (range 16) 191 | -11/Scrapyard | Entered Materials 308 | -10/Materials | Build established: Mutant 327 | -10/Materials | Discovered new exit (range 8) 563 | -10/Materials | Lost 4 parts (1p1n2w) 585 | -10/Materials | Discovered new exit (range 3) 598 | -10/Materials | Entered another Materials area 598 | -9/Materials | Evolved 2 slots: Propulsion x2 808 | -9/Materials | Discovered new exit (range 14) 850 | -9/Materials | Self-destructed Last Messages --------------- 00797_ U-05 Engineer lays Concrete. 00798_ U-05 Engineer builds a Wall. 00802_ R-06 Scavenger collects Flight Unit. 00802_ U-05 Engineer lays Concrete. 00805_ R-06 Scavenger collects Lgt. Assault Rifle. 00806_ U-05 Engineer lays Concrete. 00807_ R-06 Scavenger collects Flight Unit. 00807_ U-05 Engineer lays Concrete. 00808_ U-05 Engineer builds a Wall. 00808_ EXIT=FOUND 00809_ U-05 Engineer lays Concrete. 00812_ R-06 Scavenger collects Flight Unit. 00814_ Wheel destroyed. 00822_ Acquired 41 matter. 00823_ Grenade Launcher destroyed. 00837_ EM Pulse Gun destroyed. 00843_ Lgt. Ion Engine destroyed. 00846_ Wheel destroyed. 00848_ Y-45 Defender destroyed. Map ----- +----------------------------------------------------+ | ??????????????# #???????????# #??# [ #??????? | | ?????????????##+#####???????# #??# ! #??????? | | ?????????????# #???????# #??# ! #??????? | | ?????????????# #???????# #??# #??????? | | ?????????????# #???????# ########### ###??? | | ?????????????# "Y" #???????# # ^ = ! #??? | | ?????????????# """ ######??# # ^ #??? | | ?????????????# ##"""#??# # """ """ #??? | | ???????######## ##/###"T"#### + "T """^""" #??? | | ???????# # "" """ """ #??? | | ?####### % # #??? | | ?? = % "" ###############??? | | ????????## % % T" ############??????????? | | ?????????# """ """ "" # ??????????? | | ?????????# """ """ # ??????????? | | ?????????# """ """ # "??????????? | | ????????## # ??????????? | | ????????## # "??????????? | | ????????## """ # ??????????? | | ????? "## """ #+####+#####??????????? | | ??? """ === # ??????????? | | ??? < == # ??????????? | | ??? == # ??????????? | | ??? ##### ###########+##### ??????????? | | ???#####????## ##?????#!g [ #??????????????? | | ?????????????# #??????#@"""g #??????????????? | | ?????????????# #??????#g"T" #??????????????? | | ?????????????# #??????#[g +??????????????? | | ?????????????# #??????#= g| """ #??????????????? | | ?????????????# #??????#[[ """ #??????????????? | | ?????????????# #??????#[ """ #??????????????? | | ????????????? ???????# ] #??????????????? | | ????????????? ???????##### ###?#??????????????? | | ????????????? ????????????##??????????????????? | | ?????????????####????????????????????????????????? | | ?????????????????????????????????????????????????? | | ?????????????????????????????????????????????????? | | ?????????????????????????????????????????????????? | | ?????????????????????????????????????????????????? | | ?????????????????????????????????????????????????? | | ?????????????????????????????????????????????????? | | ?????????????????????????????????????????????????? | | ?????????????????????????????????????????????????? | | ?????????????????????????????????????????????????? | | ?????????????????????????????????????????????????? | | ?????????????????????????????????????????????????? | | ?????????????????????????????????????????????????? | | ?????????????????????????????????????????????????? | | ?????????????????????????????????????????????????? | | ?????????????????????????????????????????????????? | +----------------------------------------------------+ Best States ------------- Heat Dissipation 28 Energy Generation 10 Energy Capacity 125 Matter Stores 300 Matter Capacity 300 Sight Range 16 Robot Scan Range 14 Terrain Scan Range 16 Terrain Scan Density 10 Propulsion Shielding 33 Evasion (%) 44 Recoil Reduction 1 Item Schematics ----------------- None Robot Schematics ------------------ None Fabricated ------------ Nothing Alien Tech Used ----------------- None Achievements -------------- None Challenges ------------ None Game ------ Seed LightpackSubatomicBay Manual? 0 Play Time 00:20:56 Cumulative 11.4 hours Start 2024.04.07 @ 17:46:25 End 2024.04.07 @ 20:03:10 Sessions 1 Manual Loads 0 Difficulty Rogue Special Mode None Game No. 13 Rogue 11 Adventurer 2 Explorer 0 Win Type - Total 0 Types 0/0/0/0/0/0/0/0/0 Lore% 17 Gallery% 18 Achievement% 14 Wizard Run 0 Options --------- Layout 2 ASCII 0 Keyboard 0 Movement Numpad Keybinds 0 Fullscreen 1 Font 24/Smallcaps Map View 50x44 Zoom Use 0% Tactical HUD 1 Map Filters NONE Filters NONE Steam 1 RUN: d106db69-309b-4fdf-8f95-80ded000196d